fUST/lending_fUST_20250210
["ID","MTS","AMOUNT","RATE_DAILY","PERIOD"]
[352614154,1739200246836,-4805.69,0.00011917,2]
[352614156,1739200246846,-500.0,0.00011917,2]
[352614158,1739200246855,-561.21,0.00011917,2]
[352614159,1739200246865,-500.0,0.00011917,2]
[352614160,1739200246874,-2762.59,0.00011917,2]
[352614161,1739200246883,-555.47,0.00011917,2]
[352614162,1739200246893,-500.0,0.00011917,2]
[352614163,1739200246903,-1420.21,0.00011917,2]
[352614164,1739200246912,-768.73,0.00011917,2]
[352614165,1739200246922,-623.66,0.00011917,2]
[352614166,1739200246932,-500.0,0.00011917,2]
[352614167,1739200246943,-240.0,0.0001192,2]
[352614168,1739200246953,-153.854,0.0001197,2]
[352614169,1739200246963,-180.708347,0.00011977,2]
[352614170,1739200246972,-511.94639576,0.00012002,2]
[352614171,1739200246982,-500.0,0.00012013,2]
[352614172,1739200246992,-1000.0,0.00012029,2]
[352614173,1739200247001,-1000.0,0.00012038,2]
[352614174,1739200247011,-500.0,0.00012038,2]
[352614175,1739200247021,-500.0,0.00012054,2]
[352614176,1739200247031,-528.76481335,0.00012054,2]
[352614177,1739200247042,-151.0,0.00012054,2]
[352614178,1739200247052,-151.0,0.00012054,2]
[352614179,1739200247061,-500.0,0.00012054,2]
[352614180,1739200247071,-151.0,0.00012054,2]
[352614181,1739200247080,-151.0,0.00012054,2]
[352614182,1739200247090,-564.9,0.00012054,2]
[352614183,1739200247099,-500.0,0.00012054,2]
[352614184,1739200247110,-627.22,0.00012054,2]
[352614185,1739200247119,-500.0,0.00012054,2]
[352614186,1739200247129,-500.0,0.00012054,2]
[352614187,1739200247141,-500.0,0.00012054,2]
[352614188,1739200247151,-500.0,0.00012054,2]
[352614189,1739200247161,-537.54,0.00012054,2]
[352614190,1739200247171,-500.0,0.00012054,2]
[352614191,1739200247183,-843.72,0.00012054,2]
[352614192,1739200247194,-500.0,0.00012054,2]
[352614193,1739200247204,-560.32,0.00012054,2]
[352614194,1739200247216,-500.0,0.00012054,2]
[352614195,1739200247226,-500.0,0.00012054,2]
[352614196,1739200247236,-500.0,0.00012054,2]
[352614197,1739200247247,-500.0,0.00012054,2]
[352614198,1739200247258,-500.0,0.00012054,2]
[352614199,1739200247268,-500.0,0.00012054,2]
[352614200,1739200247278,-500.0,0.00012054,2]
[352614201,1739200247288,-13087.13,0.00012054,2]
[352614202,1739200247298,-2368.48,0.00012054,2]
[352614203,1739200247309,-756.19,0.00012054,2]
[352614204,1739200247320,-577.03,0.00012054,2]
[352614205,1739200247330,-628.96,0.00012054,2]
[352614206,1739200247340,-500.0,0.00012054,2]
[352614207,1739200247350,-500.0,0.00012054,2]
[352614208,1739200247360,-500.0,0.00012054,2]
[352614209,1739200247370,-500.0,0.00012054,2]
[352614210,1739200247379,-1428.28,0.00012054,2]
[352614211,1739200247389,-2113.79,0.00012054,2]
[352614212,1739200247399,-606.7,0.00012054,2]
[352614213,1739200247408,-6346.95,0.00012054,2]
[352614214,1739200247418,-517.11,0.00012054,2]
[352614215,1739200247428,-500.0,0.00012054,2]
[352614216,1739200247438,-631.71,0.00012054,2]
[352614217,1739200247448,-508.39,0.00012054,2]
[352614218,1739200247457,-500.0,0.00012054,2]
[352614219,1739200247467,-408.0,0.00012054,2]
[352614220,1739200247477,-601.74,0.00012054,2]
[352614221,1739200247487,-500.0,0.00012054,2]
[352614222,1739200247497,-557.35,0.00012054,2]
[352614223,1739200247507,-940.27,0.00012054,2]
[352614224,1739200247517,-500.0,0.00012054,2]
[352614225,1739200247527,-1223.86,0.00012054,2]
[352614226,1739200247538,-500.0,0.00012054,2]
[352614227,1739200247547,-500.0,0.00012054,2]
[352614228,1739200247558,-4805.69,0.00012054,2]
[352614229,1739200247567,-500.0,0.00012054,2]
[352614230,1739200247578,-561.21,0.00012054,2]
[352614231,1739200247588,-500.0,0.00012054,2]
[352614232,1739200247598,-2762.59,0.00012054,2]
[352614233,1739200247608,-555.47,0.00012054,2]
[352614234,1739200247619,-500.0,0.00012054,2]
[352614235,1739200247629,-1420.21,0.00012054,2]
[352614236,1739200247639,-768.73,0.00012054,2]
[352614237,1739200247650,-151.0,0.00012054,2]
[352614238,1739200247661,-167.904118,0.00012054,2]
[352614239,1739200247670,-167.904118,0.00012054,2]
[352614240,1739200247681,-500.0,0.00012054,2]
[352614241,1739200247692,-216.852,0.00012183,2]
[352614242,1739200247701,-500.0,0.00012191,2]
[352614243,1739200247711,-153.847106,0.00012191,2]
[352614244,1739200247721,-500.0,0.00012191,2]
[352614245,1739200247731,-564.9,0.00012191,2]
[352614246,1739200247740,-500.0,0.00012191,2]
[352614247,1739200247751,-627.22,0.00012191,2]
[352614248,1739200247761,-500.0,0.00012191,2]
[352614249,1739200247771,-500.0,0.00012191,2]
[352614250,1739200247781,-500.0,0.00012191,2]
[352614251,1739200247791,-537.54,0.00012191,2]
[352614252,1739200247801,-551.86709705,0.00012191,2]
[352614253,1739200247811,-843.72,0.00012191,2]
[352614254,1739200247820,-151.0,0.00012191,2]
[352614255,1739200247830,-500.0,0.00012191,2]
[352614256,1739200247840,-151.0,0.00012191,2]
[352614257,1739200247850,-560.32,0.00012191,2]
[352614258,1739200247860,-500.0,0.00012191,2]
[352614259,1739200247870,-352.044979,0.00012191,2]
[352614260,1739200247881,-151.0,0.00012191,2]
[352614261,1739200247892,-352.044979,0.00012191,2]
[352614262,1739200247905,-500.0,0.00012191,2]
[352614263,1739200247915,-151.0,0.00012191,2]
[352614264,1739200247926,-500.0,0.00012191,2]
[352614265,1739200247936,-500.0,0.00012191,2]
[352614266,1739200247948,-225.411458,0.00012191,2]
[352614267,1739200247958,-401.083147,0.00012191,2]
[352614268,1739200247968,-225.411458,0.00012191,2]
[352614269,1739200247979,-401.083147,0.00012191,2]
[352614270,1739200247989,-151.0,0.00012191,2]
[352614271,1739200248000,-500.0,0.00012191,2]
[352614272,1739200248010,-500.0,0.00012191,2]
[352614273,1739200248020,-500.0,0.00012191,2]
[352614274,1739200248030,-13087.13,0.00012191,2]
[352614275,1739200248041,-241.470864,0.00012191,2]
[352614276,1739200248051,-241.470864,0.00012191,2]
[352614277,1739200248062,-2368.48,0.00012191,2]
[352614278,1739200248072,-756.19,0.00012191,2]
[352614279,1739200248082,-577.03,0.00012191,2]
[352614280,1739200248093,-348.354644,0.00012191,2]
[352614281,1739200248104,-628.96,0.00012191,2]
[352614282,1739200248113,-500.0,0.00012191,2]
[352614283,1739200248123,-348.354644,0.00012191,2]
[352614284,1739200248133,-500.0,0.00012191,2]
[352614285,1739200248147,-500.0,0.00012191,2]
[352614286,1739200248157,-500.0,0.00012191,2]
[352614287,1739200248255,-1428.28,0.00012191,2]
[352614288,1739200248265,-151.0,0.00012191,2]
[352614289,1739200248276,-2113.79,0.00012191,2]
[352614290,1739200248287,-293.221108,0.00012191,2]
[352614291,1739200248297,-606.7,0.00012191,2]
[352614292,1739200248308,-6346.95,0.00012191,2]
[352614293,1739200248320,-517.11,0.00012191,2]
[352614294,1739200248331,-500.0,0.00012191,2]
[352614295,1739200248341,-631.71,0.00012191,2]
[352614296,1739200248352,-500.0,0.00012191,2]
[352614297,1739200248363,-601.74,0.00012191,2]
[352614298,1739200248373,-151.0,0.00012191,2]
[352614299,1739200248384,-213.673394,0.00012191,2]
[352614300,1739200248395,-500.0,0.00012191,2]
[352614301,1739200248405,-557.35,0.00012191,2]
[352614302,1739200248416,-940.27,0.00012191,2]
[352614303,1739200248427,-151.0,0.00012191,2]
[352614304,1739200248437,-500.0,0.00012191,2]
[352614305,1739200248449,-151.0,0.00012191,2]
[352614306,1739200248461,-1223.86,0.00012191,2]
[352614307,1739200248472,-500.0,0.00012191,2]
[352614308,1739200248482,-500.0,0.00012191,2]
[352614309,1739200248493,-4805.69,0.00012191,2]
[352614310,1739200248504,-500.0,0.00012191,2]
[352614311,1739200248514,-561.21,0.00012191,2]
[352614312,1739200248526,-500.0,0.00012191,2]
[352614313,1739200248537,-2762.59,0.00012191,2]
[352614314,1739200248547,-555.47,0.00012191,2]
[352614315,1739200248558,-1420.21,0.00012191,2]
[352614316,1739200248568,-768.73,0.00012191,2]
[352614317,1739200248579,-183.418955,0.00012191,2]
[352614318,1739200248591,-500.0,0.00012191,2]
[352614319,1739200248602,-183.418955,0.00012191,2]
[352614320,1739200248613,-151.0,0.000122,2]
[352614321,1739200248624,-155.5163702,0.00012274,2]
[352614322,1739200248635,-151.0,0.000123,2]
[352614323,1739200248651,-151.0,0.000123,2]
[352614324,1739200248661,-6406.96271985,0.00012328,5]
[352614325,1739200248672,-151.0,0.00012328,2]
[352614326,1739200248683,-151.0,0.00012328,2]
[352614327,1739200248694,-151.0,0.00012328,2]
[352614328,1739200248705,-500.0,0.00012328,2]
[352614329,1739200248716,-500.0,0.00012328,2]
[352614330,1739200248726,-564.9,0.00012328,2]
[352614331,1739200248737,-500.0,0.00012328,2]
[352614332,1739200248748,-627.22,0.00012328,2]
[352614333,1739200248759,-500.0,0.00012328,2]
[352614334,1739200248768,-500.0,0.00012328,2]
[352614335,1739200248778,-537.54,0.00012328,2]
[352614336,1739200248789,-843.72,0.00012328,2]
[352614337,1739200248800,-151.0,0.00012328,2]
[352614338,1739200248810,-615.91,0.00012328,2]
[352614339,1739200248820,-151.0,0.00012328,2]
[352614340,1739200248830,-560.32,0.00012328,2]
[352614341,1739200248840,-500.0,0.00012328,2]
[352614342,1739200248851,-500.0,0.00012328,2]
[352614343,1739200248862,-500.0,0.00012328,2]
[352614344,1739200248872,-500.0,0.00012328,2]
[352614345,1739200248883,-500.0,0.00012328,2]
[352614346,1739200248893,-500.0,0.00012328,2]
[352614347,1739200248904,-500.0,0.00012328,2]
[352614348,1739200248914,-13087.13,0.00012328,2]
[352614349,1739200248924,-2368.48,0.00012328,2]
[352614350,1739200248935,-756.19,0.00012328,2]
[352614351,1739200248946,-577.03,0.00012328,2]
[352614352,1739200248957,-628.96,0.00012328,2]
[352614353,1739200248967,-500.0,0.00012328,2]
[352614354,1739200248977,-500.0,0.00012328,2]
[352614355,1739200248988,-500.0,0.00012328,2]
[352614356,1739200248999,-500.0,0.00012328,2]
[352614357,1739200249010,-1428.28,0.00012328,2]
[352614358,1739200249020,-2113.79,0.00012328,2]
[352614359,1739200249032,-606.7,0.00012328,2]
[352614360,1739200249042,-6346.95,0.00012328,2]
[352614361,1739200249054,-517.11,0.00012328,2]
[352614362,1739200249065,-500.0,0.00012328,2]
[352614363,1739200249076,-631.71,0.00012328,2]
[352614364,1739200249086,-500.0,0.00012328,2]
[352614365,1739200249097,-601.74,0.00012328,2]
[352614366,1739200249107,-500.0,0.00012328,2]
[352614367,1739200249117,-557.35,0.00012328,2]
[352614368,1739200249127,-940.27,0.00012328,2]
[352614369,1739200249139,-500.0,0.00012328,2]
[352614370,1739200249149,-1223.86,0.00012328,2]
[352614371,1739200249158,-500.0,0.00012328,2]
[352614372,1739200249170,-500.0,0.00012328,2]
[352614373,1739200249180,-4805.69,0.00012328,2]
[352614374,1739200249190,-500.0,0.00012328,2]
[352614375,1739200249200,-561.21,0.00012328,2]
[352614376,1739200249209,-500.0,0.00012328,2]
[352614377,1739200249220,-2762.59,0.00012328,2]
[352614378,1739200249229,-555.47,0.00012328,2]
[352614379,1739200249239,-1420.21,0.00012328,2]
[352614380,1739200249249,-768.73,0.00012328,2]
[352614381,1739200249259,-500.0,0.00012328,2]
[352614382,1739200249268,-151.0,0.00012427,2]
[352614383,1739200249278,-151.0,0.00012427,2]
[352614384,1739200249287,-2538.58172982,0.00012465,5]
[352614385,1739200249296,-151.0,0.00012465,2]
[352614386,1739200249305,-500.0,0.00012465,2]
[352614387,1739200249315,-969.461782,0.00012465,2]
[352614388,1739200249325,-969.461782,0.00012465,2]
[352614389,1739200249334,-151.0,0.00012465,2]
[352614390,1739200249344,-151.0,0.00012465,2]
[352614391,1739200249353,-340.71,0.00012465,2]
[352614392,1739200249363,-151.0,0.00012465,2]
[352614393,1739200249372,-151.0,0.00012465,2]
[352614394,1739200249382,-564.9,0.00012465,2]
[352614395,1739200249392,-500.0,0.00012465,2]
[352614396,1739200249401,-627.22,0.00012465,2]
[352614397,1739200249411,-500.0,0.00012465,2]
[352614398,1739200249420,-526.46,0.00012465,2]
[352614399,1739200249430,-537.54,0.00012465,2]
[352614400,1739200249439,-843.72,0.00012465,2]
[352614401,1739200249449,-560.32,0.00012465,2]
[352614402,1739200249458,-500.0,0.00012465,2]
[352614403,1739200249468,-500.0,0.00012465,2]
[352614404,1739200249477,-500.0,0.00012465,2]
[352614405,1739200249486,-500.0,0.00012465,2]
[352614406,1739200249496,-500.0,0.00012465,2]
[352614407,1739200249505,-500.0,0.00012465,2]
[352614408,1739200249515,-500.0,0.00012465,2]
[352614409,1739200249524,-13087.13,0.00012465,2]
[352614410,1739200249533,-2368.48,0.00012465,2]
[352614411,1739200249542,-756.19,0.00012465,2]
[352614412,1739200249552,-577.03,0.00012465,2]
[352614413,1739200249561,-628.96,0.00012465,2]
[352614414,1739200249571,-500.0,0.00012465,2]
[352614415,1739200249580,-411.76626426,0.00012465,2]
[352614416,1739200249590,-500.0,0.00012465,2]
[352614417,1739200249599,-500.0,0.00012465,2]
[352614418,1739200249609,-1428.28,0.00012465,2]
[352614419,1739200249618,-151.0,0.00012465,2]
[352614420,1739200249628,-2113.79,0.00012465,2]
[352614421,1739200249637,-606.7,0.00012465,2]
[352614422,1739200249646,-6346.95,0.00012465,2]
[352614423,1739200249656,-517.11,0.00012465,2]
[352614424,1739200249665,-342.65,0.00012465,2]
[352614425,1739200249674,-631.71,0.00012465,2]
[352614426,1739200249683,-500.0,0.00012465,2]
[352614427,1739200249695,-601.74,0.00012465,2]
[352614428,1739200249704,-151.0,0.00012465,2]
[352614429,1739200249713,-500.0,0.00012465,2]
[352614430,1739200249722,-557.35,0.00012465,2]
[352614431,1739200249732,-940.27,0.00012465,2]
[352614432,1739200249741,-151.0,0.00012465,2]
[352614433,1739200249750,-500.0,0.00012465,2]
[352614434,1739200249759,-170.582518,0.00012465,2]
[352614435,1739200249768,-1223.86,0.00012465,2]
[352614436,1739200249777,-500.0,0.00012465,2]
[352614437,1739200249787,-4805.69,0.00012465,2]
[352614438,1739200249796,-500.0,0.00012465,2]
[352614439,1739200249806,-561.21,0.00012465,2]
[352614440,1739200249815,-500.0,0.00012465,2]
[352614441,1739200249824,-2762.59,0.00012465,2]
[352614442,1739200249833,-555.47,0.00012465,2]
[352614443,1739200249843,-1420.21,0.00012465,2]
[352614444,1739200249853,-768.73,0.00012465,2]
[352614445,1739200249862,-151.0,0.00012465,2]
[352614446,1739200249871,-167.904118,0.00012465,2]
[352614447,1739200249881,-183.418955,0.00012465,2]
[352614448,1739200249890,-167.904118,0.00012465,2]
[352614449,1739200249899,-500.0,0.00012465,2]
[352614450,1739200249909,-183.418955,0.00012465,2]
[352614451,1739200249919,-255.6751946,0.00012475,2]
[352614452,1739200249928,-151.938607,0.00012541,2]
[352614453,1739200249937,-335.24,0.00012574,2]
[352614454,1739200249950,-625.89056432,0.000126,2]
[352614455,1739200249960,-151.0,0.000126,2]
[352614456,1739200249970,-151.0,0.000126,2]
[352614457,1739200249979,-151.0,0.000126,2]
[352614458,1739200249988,-593.48253987,0.00012601,2]
[352614459,1739200249999,-151.0,0.00012602,2]
[352614460,1739200250008,-151.0,0.00012602,2]
[352614461,1739200250019,-151.0,0.00012602,2]
[352614462,1739200250028,-387.75,0.00012602,2]
[352614463,1739200250038,-564.9,0.00012602,2]
[352614464,1739200250047,-500.0,0.00012602,2]
[352614465,1739200250057,-627.22,0.00012602,2]
[352614466,1739200250066,-622.71278937,0.00012602,2]
[352614467,1739200250075,-537.54,0.00012602,2]
[352614468,1739200250085,-843.72,0.00012602,2]
[352614469,1739200250094,-151.0,0.00012602,2]
[352614470,1739200250103,-287.658028,0.00012602,2]
[352614471,1739200250112,-560.32,0.00012602,2]
[352614472,1739200250121,-352.044979,0.00012602,2]
[352614473,1739200250131,-151.0,0.00012602,2]
[352614474,1739200250146,-352.044979,0.00012602,2]
[352614475,1739200250233,-151.0,0.00012602,2]
[352614476,1739200250251,-250.87998487,0.00012602,2]
[352614477,1739200250269,-263.71822142,0.00012602,2]
[352614478,1739200250278,-474.05,0.00012602,2]
[352614479,1739200250288,-225.411458,0.00012602,2]
[352614480,1739200250297,-401.083147,0.00012602,2]
[352614481,1739200250306,-225.411458,0.00012602,2]
[352614482,1739200250315,-401.083147,0.00012602,2]
[352614483,1739200250324,-500.0,0.00012602,2]
[352614484,1739200250334,-500.0,0.00012602,2]
[352614485,1739200250343,-596.20577899,0.00012602,2]
[352614486,1739200250352,-13087.13,0.00012602,2]
[352614487,1739200250362,-241.470864,0.00012602,2]
[352614488,1739200250371,-241.470864,0.00012602,2]
[352614489,1739200250380,-2368.48,0.00012602,2]
[352614490,1739200250389,-756.19,0.00012602,2]
[352614491,1739200250398,-577.03,0.00012602,2]
[352614492,1739200250407,-348.354644,0.00012602,2]
[352614493,1739200250417,-628.96,0.00012602,2]
[352614494,1739200250426,-500.0,0.00012602,2]
[352614495,1739200250435,-348.354644,0.00012602,2]
[352614496,1739200250445,-500.0,0.00012602,2]
[352614497,1739200250455,-500.0,0.00012602,2]
[352614498,1739200250464,-1428.28,0.00012602,2]
[352614499,1739200250473,-2113.79,0.00012602,2]
[352614500,1739200250482,-606.7,0.00012602,2]
[352614501,1739200250491,-6346.95,0.00012602,2]
[352614502,1739200250502,-517.11,0.00012602,2]
[352614503,1739200250511,-631.71,0.00012602,2]
[352614504,1739200250521,-500.0,0.00012602,2]
[352614505,1739200250530,-601.74,0.00012602,2]
[352614506,1739200250539,-282.22,0.00012602,2]
[352614507,1739200250549,-557.35,0.00012602,2]
[352614508,1739200250558,-940.27,0.00012602,2]
[352614509,1739200250567,-500.0,0.00012602,2]
[352614510,1739200250576,-1223.86,0.00012602,2]
[352614511,1739200250585,-500.0,0.00012602,2]
[352614512,1739200250595,-4805.69,0.00012602,2]
[352614513,1739200250604,-500.0,0.00012602,2]
[352614514,1739200250614,-561.21,0.00012602,2]
[352614515,1739200250623,-500.0,0.00012602,2]
[352614516,1739200250633,-2762.59,0.00012602,2]
[352614517,1739200250643,-555.47,0.00012602,2]
[352614518,1739200250652,-1420.21,0.00012602,2]
[352614519,1739200250661,-768.73,0.00012602,2]
[352614520,1739200250671,-500.0,0.00012602,2]
[352614521,1739200250680,-151.0,0.00012645,2]
[352614522,1739200250689,-151.0,0.00012645,2]
[352614523,1739200250700,-151.0,0.00012739,2]
[352614524,1739200250709,-151.0,0.00012739,2]
[352614525,1739200250718,-151.0,0.00012739,2]
[352614526,1739200250727,-151.0,0.00012739,2]
[352614527,1739200250736,-564.9,0.00012739,2]
[352614528,1739200250746,-500.0,0.00012739,2]
[352614529,1739200250755,-627.22,0.00012739,2]
[352614530,1739200250764,-537.54,0.00012739,2]
[352614531,1739200250773,-843.72,0.00012739,2]
[352614532,1739200250782,-560.32,0.00012739,2]
[352614533,1739200250791,-500.0,0.00012739,2]
[352614534,1739200250800,-500.0,0.00012739,2]
[352614535,1739200250809,-13087.13,0.00012739,2]
[352614536,1739200250819,-2368.48,0.00012739,2]
[352614537,1739200250828,-756.19,0.00012739,2]
[352614538,1739200250837,-150.23,0.00012739,2]
[352614539,1739200250846,-577.03,0.00012739,2]
[352614540,1739200250855,-628.96,0.00012739,2]
[352614541,1739200250865,-500.0,0.00012739,2]
[352614542,1739200250874,-500.0,0.00012739,2]
[352614543,1739200250887,-262.06,0.00012739,2]
[352614544,1739200250896,-1428.28,0.00012739,2]
[352614545,1739200250905,-2113.79,0.00012739,2]
[352614546,1739200250914,-606.7,0.00012739,2]
[352614547,1739200250923,-6346.95,0.00012739,2]
[352614548,1739200250933,-517.11,0.00012739,2]
[352614549,1739200250943,-631.71,0.00012739,2]
[352614550,1739200250952,-500.0,0.00012739,2]
[352614551,1739200250962,-601.74,0.00012739,2]
[352614552,1739200250971,-150.23,0.00012739,2]
[352614553,1739200250980,-557.35,0.00012739,2]
[352614554,1739200250990,-500.0,0.00012739,2]
[352614555,1739200250999,-500.0,0.00012739,2]
[352614556,1739200251009,-940.27,0.00012739,2]
[352614557,1739200251018,-500.0,0.00012739,2]
[352614558,1739200251027,-1223.86,0.00012739,2]
[352614559,1739200251038,-500.0,0.00012739,2]
[352614560,1739200251047,-4805.69,0.00012739,2]
[352614561,1739200251056,-500.0,0.00012739,2]
[352614562,1739200251066,-561.21,0.00012739,2]
[352614563,1739200251075,-500.0,0.00012739,2]
[352614564,1739200251084,-2762.59,0.00012739,2]
[352614565,1739200251093,-500.0,0.00012739,2]
[352614566,1739200251103,-555.47,0.00012739,2]
[352614567,1739200251112,-150.23,0.00012739,2]
[352614568,1739200251121,-150.7741827,0.00012739,2]
[352614569,1739200251131,-1420.21,0.00012739,2]
[352614570,1739200251145,-768.73,0.00012739,2]
[352614571,1739200251154,-500.0,0.00012739,2]
[352614572,1739200251164,-480.0,0.000128,2]
[352614573,1739200251173,-151.0,0.00012876,2]
[352614574,1739200251183,-151.700334,0.00012876,2]
[352614575,1739200251194,-151.0,0.00012876,2]
[352614576,1739200251203,-262.516283,0.00012876,2]
[352614577,1739200251212,-151.0,0.00012876,2]
[352614578,1739200251223,-564.9,0.00012876,2]
[352614579,1739200251232,-500.0,0.00012876,2]
[352614580,1739200251241,-627.22,0.00012876,2]
[352614581,1739200251251,-537.54,0.00012876,2]
[352614582,1739200251260,-843.72,0.00012876,2]
[352614583,1739200251269,-560.32,0.00012876,2]
[352614584,1739200251278,-500.0,0.00012876,2]
[352614585,1739200251287,-500.0,0.00012876,2]
[352614586,1739200251296,-13087.13,0.00012876,2]
[352614587,1739200251306,-2368.48,0.00012876,2]
[352614588,1739200251316,-756.19,0.00012876,2]
[352614589,1739200251325,-577.03,0.00012876,2]
[352614590,1739200251334,-628.96,0.00012876,2]
[352614591,1739200251343,-235.65,0.00012876,2]
[352614592,1739200251352,-500.0,0.00012876,2]
[352614593,1739200251361,-1428.28,0.00012876,2]
[352614594,1739200251370,-151.0,0.00012876,2]
[352614595,1739200251379,-2113.79,0.00012876,2]
[352614596,1739200251388,-606.7,0.00012876,2]
[352614597,1739200251397,-6346.95,0.00012876,2]
[352614598,1739200251406,-517.11,0.00012876,2]
[352614599,1739200251415,-631.71,0.00012876,2]
[352614600,1739200251426,-500.0,0.00012876,2]
[352614601,1739200251435,-601.74,0.00012876,2]
[352614602,1739200251446,-151.0,0.00012876,2]
[352614603,1739200251455,-557.35,0.00012876,2]
[352614604,1739200251464,-940.27,0.00012876,2]
[352614605,1739200251473,-151.0,0.00012876,2]
[352614606,1739200251482,-500.0,0.00012876,2]
[352614607,1739200251491,-1223.86,0.00012876,2]
[352614608,1739200251500,-500.0,0.00012876,2]
[352614609,1739200251509,-4805.69,0.00012876,2]
[352614610,1739200251519,-500.0,0.00012876,2]
[352614611,1739200251528,-561.21,0.00012876,2]
[352614612,1739200251537,-500.0,0.00012876,2]
[352614613,1739200251547,-2762.59,0.00012876,2]
[352614614,1739200251556,-555.47,0.00012876,2]
[352614615,1739200251565,-1420.21,0.00012876,2]
[352614616,1739200251575,-768.73,0.00012876,2]
[352614617,1739200251584,-151.0,0.00012876,2]
[352614618,1739200251593,-167.904118,0.00012876,2]
[352614619,1739200251602,-183.418955,0.00012876,2]
[352614620,1739200251611,-167.904118,0.00012876,2]
[352614621,1739200251620,-500.0,0.00012876,2]
[352614622,1739200251629,-183.418955,0.00012876,2]
[352614623,1739200251639,-282.52715127,0.000129,2]
[352614624,1739200251648,-282.52715124,0.000129,2]
[352614625,1739200251657,-254.9811215,0.00012913,2]
[352614626,1739200251667,-413.114,0.00012971,2]
[352614627,1739200251676,-17003.4062454,0.00013,2]
[352614628,1739200251686,-708.9544464,0.00013,2]
[352614629,1739200251697,-969.461782,0.00013,2]
[352614630,1739200251706,-969.461782,0.00013,2]
[352614631,1739200251715,-150.23,0.00013013,2]
[352614632,1739200251724,-150.23,0.00013013,2]
[352614633,1739200251734,-500.0,0.00013013,2]
[352614634,1739200251744,-500.0,0.00013013,2]
[352614635,1739200251753,-500.0,0.00013013,2]
[352614636,1739200251763,-151.0,0.00013013,2]
[352614637,1739200251772,-151.0,0.00013013,2]
[352614638,1739200251782,-151.0,0.00013013,2]
[352614639,1739200251791,-151.0,0.00013013,2]
[352614640,1739200251800,-151.0,0.00013013,2]
[352614641,1739200251810,-564.9,0.00013013,2]
[352614642,1739200251819,-500.0,0.00013013,2]
[352614643,1739200251828,-627.22,0.00013013,2]
[352614644,1739200251837,-537.54,0.00013013,2]
[352614645,1739200251846,-843.72,0.00013013,2]
[352614646,1739200251855,-151.0,0.00013013,2]
[352614647,1739200251865,-151.0,0.00013013,2]
[352614648,1739200251948,-151.0,0.00013013,2]
[352614649,1739200251958,-560.32,0.00013013,2]
[352614650,1739200251968,-352.044979,0.00013013,2]
[352614651,1739200251977,-151.0,0.00013013,2]
[352614652,1739200251986,-352.044979,0.00013013,2]
[352614653,1739200251995,-189.723394,0.00013013,2]
[352614654,1739200252005,-225.411458,0.00013013,2]
[352614655,1739200252014,-401.083147,0.00013013,2]